fUSD/lending_fUSD_20250226
["ID","MTS","AMOUNT","RATE_DAILY","PERIOD"]
[354602462,1740595848985,-571.34,0.0003589,14]
[354602464,1740595848995,-696.87,0.0003589,14]
[354602466,1740595849006,-1290.39,0.0003589,14]
[354602468,1740595849016,-546.44,0.0003589,14]
[354602470,1740595849027,-500.0,0.0003589,14]
[354602472,1740595849039,-255.57723115,0.0003589,14]
[354602474,1740595849052,-500.0,0.0003589,14]
[354602476,1740595849066,-500.0,0.0003589,14]
[354602478,1740595849078,-594.86,0.0003589,14]
[354602480,1740595849090,-1243.98,0.0003589,14]
[354602482,1740595849102,-500.0,0.0003589,14]
[354602484,1740595849113,-635.18,0.0003589,14]
[354602486,1740595849125,-617.43,0.0003589,14]
[354602488,1740595849136,-500.0,0.0003589,14]
[354602490,1740595849147,-858.4,0.0003589,14]
[354602492,1740595849159,-500.0,0.0003589,14]
[354602494,1740595849171,-665.21,0.0003589,14]
[354602496,1740595849183,-500.0,0.0003589,14]
[354602499,1740595849195,-500.0,0.0003589,14]
[354602501,1740595849206,-500.0,0.0003589,14]
[354602503,1740595849217,-500.0,0.0003589,14]
[354602505,1740595849228,-1850.02,0.0003589,14]
[354602507,1740595849239,-1161.63,0.0003589,14]
[354602509,1740595849250,-515.26709367,0.0003589,14]
[354602511,1740595849261,-1036.04,0.0003589,14]
[354602513,1740595849273,-2240.29,0.0003589,14]
[354602515,1740595849284,-500.0,0.0003589,14]
[354602517,1740595849296,-504.44839264,0.0003589,14]
[354602519,1740595849307,-500.0,0.0003589,14]
[354602521,1740595849321,-500.0,0.0003589,14]
[354602523,1740595849331,-500.0,0.0003589,14]
[354602525,1740595849342,-500.0,0.0003589,14]
[354602528,1740595849352,-500.0,0.0003589,14]
[354602530,1740595849363,-608.93,0.0003589,14]
[354602532,1740595849374,-500.0,0.0003589,14]
[354602534,1740595849384,-2310.8,0.0003589,14]
[354602536,1740595849394,-500.0,0.0003589,14]
[354602538,1740595849405,-500.0,0.0003589,14]
[354602540,1740595849417,-500.0,0.0003589,14]
[354602542,1740595849427,-836.61,0.0003589,14]
[354602544,1740595849437,-500.0,0.0003589,14]
[354602546,1740595849447,-500.0,0.0003589,14]
[354602548,1740595849457,-1018.81,0.0003589,14]
[354602550,1740595849467,-688.36,0.0003589,14]
[354602552,1740595849478,-500.0,0.0003589,14]
[354602554,1740595849488,-1005.66584071,0.0003589,14]
[354602556,1740595849498,-871.69,0.0003589,14]
[354602559,1740595849509,-500.0,0.0003589,14]
[354602561,1740595849518,-500.0,0.0003589,14]
[354602563,1740595849528,-500.0,0.0003589,14]
[354602565,1740595849537,-500.0,0.0003589,14]
[354602567,1740595849547,-1006.27,0.0003589,14]
[354602569,1740595849557,-595.91,0.0003589,14]
[354602571,1740595849569,-1116.49,0.0003589,14]
[354602573,1740595849579,-641.45,0.0003589,14]
[354602575,1740595849588,-500.0,0.0003589,14]
[354602577,1740595849598,-500.0,0.0003589,14]
[354602579,1740595849608,-500.0,0.0003589,14]
[354602581,1740595849618,-500.0,0.0003589,14]
[354602583,1740595849627,-772.83,0.0003589,14]
[354602585,1740595849639,-500.0,0.0003589,14]
[354602587,1740595849648,-1308.99,0.0003589,14]
[354602589,1740595849658,-500.0,0.0003589,14]
[354602592,1740595849668,-935.7,0.0003589,14]
[354602594,1740595849678,-872.15,0.0003589,14]
[354602596,1740595849688,-500.0,0.0003589,14]
[354602598,1740595849698,-500.0,0.0003589,14]
[354602600,1740595849708,-500.0,0.0003589,14]
[354602602,1740595849718,-649.25,0.0003589,14]
[354602604,1740595849728,-500.0,0.0003589,14]
[354602606,1740595849738,-1082.33,0.0003589,14]
[354602608,1740595849748,-513.39,0.0003589,14]
[354602610,1740595849757,-500.0,0.0003589,14]
[354602612,1740595849768,-500.0,0.0003589,14]
[354602614,1740595849778,-1176.81,0.0003589,14]
[354602616,1740595849788,-500.0,0.0003589,14]
[354602618,1740595849798,-1686.11,0.0003589,14]
[354602620,1740595849808,-500.0,0.0003589,14]
[354602622,1740595849820,-538.09,0.0003589,14]
[354602624,1740595849829,-547.24,0.0003589,14]
[354602626,1740595849839,-500.0,0.0003589,14]
[354602628,1740595849848,-827.15,0.0003589,14]
[354602630,1740595849858,-500.0,0.0003589,14]
[354602632,1740595849868,-500.0,0.0003589,14]
[354602634,1740595849878,-500.0,0.0003589,14]
[354602636,1740595849889,-811.61,0.0003589,14]
[354602638,1740595849899,-1804.38,0.0003589,14]
[354602640,1740595849909,-969.08,0.0003589,14]
[354602643,1740595849919,-877.13,0.0003589,14]
[354602645,1740595849932,-2234.9,0.0003589,14]
[354602647,1740595849947,-582.64,0.0003589,14]
[354602649,1740595849958,-591.13,0.0003589,14]
[354602651,1740595849969,-1855.35,0.0003589,14]
[354602653,1740595849981,-500.0,0.0003589,14]
[354602655,1740595849992,-500.0,0.0003589,14]
[354602657,1740595850003,-500.0,0.0003589,14]
[354602659,1740595850014,-500.0,0.0003589,14]
[354602692,1740595850353,-500.0,0.0003589,14]
[354602695,1740595850363,-500.0,0.0003589,14]
[354602697,1740595850374,-1019.59,0.0003589,14]
[354602699,1740595850384,-500.0,0.0003589,14]
[354602701,1740595850395,-2120.11,0.0003589,14]
[354602703,1740595850404,-1021.29,0.0003589,14]
[354602705,1740595850413,-1613.94,0.0003589,14]
[354602707,1740595850423,-572.27,0.0003589,14]
[354602709,1740595850432,-500.0,0.0003589,14]
[354602711,1740595850442,-500.0,0.0003589,14]
[354602713,1740595850452,-1105.78,0.0003589,14]
[354602715,1740595850462,-500.0,0.0003589,14]
[354602717,1740595850472,-982.48,0.0003589,14]
[354602719,1740595850481,-500.0,0.0003589,14]
[354602721,1740595850492,-2258.29,0.0003589,14]
[354602723,1740595850503,-500.0,0.0003589,14]
[354602725,1740595850513,-500.0,0.0003589,14]
[354602727,1740595850524,-500.0,0.0003589,14]
[354602729,1740595850534,-500.0,0.0003589,14]
[354602731,1740595850544,-1496.14,0.0003589,14]
[354602733,1740595850554,-782.62,0.0003589,14]
[354602735,1740595850565,-1313.98,0.0003589,14]
[354602737,1740595850576,-633.15,0.0003589,14]
[354602739,1740595850587,-500.0,0.0003589,14]
[354602741,1740595850600,-1614.67,0.0003589,14]
[354602743,1740595850611,-777.94,0.0003589,14]
[354602745,1740595850622,-500.0,0.0003589,14]
[354602747,1740595850632,-630.05,0.0003589,14]
[354602749,1740595850642,-1119.74,0.0003589,14]
[354602751,1740595850653,-500.0,0.0003589,14]
[354602753,1740595850663,-500.0,0.0003589,14]
[354602755,1740595850672,-1550.01,0.0003589,14]
[354602757,1740595850683,-500.0,0.0003589,14]
[354602759,1740595850692,-898.54,0.0003589,14]
[354602761,1740595850702,-500.0,0.0003589,14]
[354602763,1740595850711,-500.0,0.0003589,14]
[354602765,1740595850721,-666.5,0.0003589,14]
[354602767,1740595850730,-986.29,0.0003589,14]
[354602770,1740595850741,-500.0,0.0003589,14]
[354602772,1740595850750,-1800.45,0.0003589,14]
[354602774,1740595850759,-1038.19,0.0003589,14]
[354602776,1740595850769,-722.35,0.0003589,14]
[354602778,1740595850778,-594.32109018,0.0003589,14]
[354602780,1740595850787,-777.79,0.0003589,14]
[354602782,1740595850796,-1016.47,0.0003589,14]
[354602784,1740595850806,-583.31,0.0003589,14]
[354602786,1740595850817,-746.65,0.0003589,14]
[354602788,1740595850826,-529.67,0.0003589,14]
[354602790,1740595850835,-500.0,0.0003589,14]
[354602792,1740595850845,-500.0,0.0003589,14]
[354602794,1740595850855,-500.0,0.0003589,14]
[354602796,1740595850864,-806.05,0.0003589,14]
[354602798,1740595850873,-886.7,0.0003589,14]
[354602800,1740595850883,-820.28,0.0003589,14]
[354602802,1740595850892,-1501.14,0.0003589,14]
[354602804,1740595850902,-500.0,0.0003589,14]
[354602806,1740595850911,-500.0,0.0003589,14]
[354602808,1740595850921,-921.34,0.0003589,14]
[354602810,1740595850932,-500.0,0.0003589,14]
[354602812,1740595850941,-699.59,0.0003589,14]
[354602814,1740595850951,-1003.76,0.0003589,14]
[354602816,1740595850964,-500.0,0.0003589,14]
[354602818,1740595850975,-1495.63,0.0003589,14]
[354602820,1740595850985,-500.0,0.0003589,14]
[354602822,1740595850994,-834.44,0.0003589,14]
[354602824,1740595851004,-831.3,0.0003589,14]
[354602826,1740595851014,-675.74,0.0003589,14]
[354602828,1740595851024,-500.0,0.0003589,14]
[354602830,1740595851035,-917.03,0.0003589,14]
[354602832,1740595851044,-551.68,0.0003589,14]
[354602834,1740595851054,-681.62,0.0003589,14]
[354602836,1740595851066,-1958.47,0.0003589,14]
[354602838,1740595851077,-1067.6,0.0003589,14]
[354602840,1740595851087,-500.0,0.0003589,14]
[354602842,1740595851097,-636.63,0.0003589,14]
[354602844,1740595851108,-500.0,0.0003589,14]
[354602846,1740595851118,-1007.51,0.0003589,14]
[354602848,1740595851128,-500.0,0.0003589,14]
[354602850,1740595851138,-500.0,0.0003589,14]
[354602852,1740595851148,-500.0,0.0003589,14]
[354602854,1740595851157,-826.67,0.0003589,14]
[354602856,1740595851167,-532.65,0.0003589,14]
[354602858,1740595851178,-500.0,0.0003589,14]
[354602860,1740595851189,-500.0,0.0003589,14]
[354602862,1740595851199,-1255.98,0.0003589,14]
[354602864,1740595851210,-1084.65,0.0003589,14]
[354602866,1740595851223,-510.04,0.0003589,14]
[354602867,1740595851232,-634.72,0.0003589,14]
[354602868,1740595851242,-1101.48,0.0003589,14]
[354602869,1740595851251,-842.79,0.0003589,14]
[354602870,1740595851261,-500.0,0.0003589,14]
[354602871,1740595851270,-861.46,0.0003589,14]
[354602872,1740595851280,-500.0,0.0003589,14]
[354602873,1740595851289,-765.4,0.0003589,14]
[354602874,1740595851299,-604.9,0.0003589,14]
[354602875,1740595851308,-500.0,0.0003589,14]
[354602876,1740595851320,-1116.67,0.0003589,14]
[354602877,1740595851329,-500.0,0.0003589,14]
[354602878,1740595851339,-500.0,0.0003589,14]
[354602879,1740595851348,-500.0,0.0003589,14]
[354602880,1740595851357,-1441.7,0.0003589,14]
[354602881,1740595851367,-754.28,0.0003589,14]
[354602882,1740595851376,-929.23,0.0003589,14]
[354602884,1740595851386,-500.0,0.0003589,14]
[354602885,1740595851395,-500.0,0.0003589,14]
[354602887,1740595851405,-1403.66,0.0003589,14]
[354602889,1740595851415,-718.11,0.0003589,14]
[354602891,1740595851424,-1217.5,0.0003589,14]
[354602894,1740595851435,-1107.15,0.0003589,14]
[354602895,1740595851444,-1834.12,0.0003589,14]
[354602897,1740595851454,-500.0,0.0003589,14]
[354602899,1740595851463,-1996.52,0.0003589,14]
[354602901,1740595851473,-902.19,0.0003589,14]
[354602903,1740595851483,-561.55,0.0003589,14]
[354602905,1740595851492,-565.94,0.0003589,14]
[354602907,1740595851501,-500.0,0.0003589,14]
[354602909,1740595851511,-500.0,0.0003589,14]
[354602911,1740595851520,-500.0,0.0003589,14]
[354602913,1740595851530,-500.0,0.0003589,14]
[354602915,1740595851539,-563.43,0.0003589,14]
[354602917,1740595851548,-500.0,0.0003589,14]
[354602919,1740595851558,-500.0,0.0003589,14]
[354602921,1740595851569,-500.0,0.0003589,14]
[354602923,1740595851579,-1467.19,0.0003589,14]
[354602925,1740595851589,-1321.18,0.0003589,14]
[354602927,1740595851598,-500.0,0.0003589,14]
[354602929,1740595851607,-500.0,0.0003589,14]
[354602931,1740595851617,-1902.42,0.0003589,14]
[354602933,1740595851627,-500.0,0.0003589,14]
[354602936,1740595851636,-500.0,0.0003589,14]
[354602937,1740595851646,-1140.97,0.0003589,14]
[354602940,1740595851656,-528.46,0.0003589,14]
[354602942,1740595851666,-500.0,0.0003589,14]
[354602944,1740595851676,-651.71,0.0003589,14]
[354602945,1740595851685,-500.0,0.0003589,14]
[354602948,1740595851696,-1073.87,0.0003589,14]
[354602949,1740595851705,-1235.9,0.0003589,14]
[354602951,1740595851714,-583.0,0.0003589,14]
[354602954,1740595851724,-500.0,0.0003589,14]
[354602955,1740595851734,-642.59,0.0003589,14]
[354602958,1740595851744,-500.0,0.0003589,14]
[354602960,1740595851755,-1162.07,0.0003589,14]
[354602962,1740595851765,-1175.03,0.0003589,14]
[354602964,1740595851775,-500.0,0.0003589,14]
[354602966,1740595851786,-1123.12,0.0003589,14]
[354602968,1740595851796,-1360.38,0.0003589,14]
[354602970,1740595851805,-502.58474832,0.0003589,14]
[354602972,1740595851820,-990.04,0.0003589,14]
[354602973,1740595851830,-535.06419881,0.0003589,14]
[354602976,1740595851840,-500.0,0.0003589,14]
[354602978,1740595851851,-500.0,0.0003589,14]
[354602980,1740595851862,-758.81,0.0003589,14]
[354602982,1740595851872,-434.36374587,0.0003589,14]
[354602984,1740595851883,-743.78,0.0003589,14]
[354602986,1740595851894,-1858.11,0.0003589,14]
[354602988,1740595851904,-836.2,0.0003589,14]
[354602990,1740595851915,-500.0,0.0003589,14]
[354602992,1740595851925,-552.16,0.0003589,14]
[354602994,1740595851940,-500.0,0.0003589,14]
[354602996,1740595851950,-957.01,0.0003589,14]
[354602998,1740595851962,-1008.01,0.0003589,14]
[354603000,1740595851973,-1949.61,0.0003589,14]
[354603002,1740595851986,-500.0,0.0003589,14]
[354603005,1740595851997,-1466.22,0.0003589,14]
[354603007,1740595852009,-1152.19,0.0003589,14]
[354603009,1740595852021,-500.0,0.0003589,14]
[354603011,1740595852034,-2482.2,0.0003589,14]
[354603013,1740595852045,-1828.52,0.0003589,14]
[354603015,1740595852056,-500.0,0.0003589,14]
[354603017,1740595852075,-527.63,0.0003589,14]
[354603019,1740595852086,-500.0,0.0003589,14]
[354603021,1740595852097,-873.77,0.0003589,14]
[354603023,1740595852108,-500.0,0.0003589,14]
[354603025,1740595852119,-500.0,0.0003589,14]
[354603027,1740595852129,-1665.67,0.0003589,14]
[354603029,1740595852140,-500.0,0.0003589,14]
[354603031,1740595852151,-1934.6,0.0003589,14]
[354603033,1740595852162,-786.06,0.0003589,14]
[354603035,1740595852173,-1875.12,0.0003589,14]
[354603037,1740595852184,-1075.72,0.0003589,14]
[354603039,1740595852196,-554.85,0.0003589,14]
[354603041,1740595852206,-500.0,0.0003589,14]
[354603043,1740595852218,-956.32,0.0003589,14]
[354603045,1740595852228,-1163.37,0.0003589,14]
[354603047,1740595852240,-500.0,0.0003589,14]
[354603049,1740595852251,-500.0,0.0003589,14]
[354603050,1740595852261,-1037.67,0.0003589,14]
[354603053,1740595852272,-2110.11,0.0003589,14]
[354603054,1740595852283,-655.67,0.0003589,14]
[354603056,1740595852293,-606.74262112,0.0003589,14]
[354603058,1740595852303,-500.0,0.0003589,14]
[354603060,1740595852313,-500.0,0.0003589,14]
[354603062,1740595852325,-500.0,0.0003589,14]
[354603064,1740595852334,-519.01,0.0003589,14]
[354603066,1740595852344,-500.0,0.0003589,14]
[354603068,1740595852354,-754.12,0.0003589,14]
[354603070,1740595852364,-500.0,0.0003589,14]
[354603072,1740595852373,-500.0,0.0003589,14]
[354603074,1740595852383,-1595.01,0.0003589,14]
[354603076,1740595852393,-1351.39,0.0003589,14]
[354603078,1740595852403,-500.0,0.0003589,14]
[354603080,1740595852412,-500.0,0.0003589,14]
[354603082,1740595852422,-507.25133486,0.0003589,14]
[354603084,1740595852432,-978.64,0.0003589,14]
[354603086,1740595852444,-500.0,0.0003589,14]
[354603089,1740595852454,-883.23,0.0003589,14]
[354603090,1740595852464,-500.0,0.0003589,14]
[354603092,1740595852473,-500.0,0.0003589,14]
[354603095,1740595852483,-544.48,0.0003589,14]
[354603096,1740595852493,-1282.93,0.0003589,14]
[354603099,1740595852503,-192.31441958,0.0003589,14]
[354603100,1740595852512,-500.0,0.0003589,14]
[354603102,1740595852522,-500.0,0.0003589,14]
[354603104,1740595852531,-1979.65,0.0003589,14]
[354603106,1740595852541,-500.0,0.0003589,14]
[354603108,1740595852550,-1465.82,0.0003589,14]
[354603110,1740595852560,-500.0,0.0003589,14]
[354603112,1740595852572,-1395.89,0.0003589,14]
[354603114,1740595852581,-854.86,0.0003589,14]
[354603117,1740595852591,-1505.0,0.0003589,14]
[354603119,1740595852601,-924.09,0.0003589,14]
[354603121,1740595852611,-711.08,0.0003589,14]
[354603123,1740595852620,-552.43,0.0003589,14]
[354603125,1740595852630,-500.0,0.0003589,14]
[354603127,1740595852640,-895.76,0.0003589,14]
[354603129,1740595852651,-500.0,0.0003589,14]
[354603131,1740595852661,-500.0,0.0003589,14]
[354603133,1740595852672,-500.0,0.0003589,14]
[354603135,1740595852682,-932.59,0.0003589,14]
[354603136,1740595852693,-500.0,0.0003589,14]
[354603138,1740595852703,-1558.86,0.0003589,14]
[354603140,1740595852714,-912.19,0.0003589,14]
[354603142,1740595852725,-551.46,0.0003589,14]
[354603144,1740595852736,-500.0,0.0003589,14]
[354603146,1740595852747,-504.56899706,0.0003589,14]
[354603148,1740595852758,-500.0,0.0003589,14]
[354603157,1740595852853,-3271.55,0.0003589,14]
[354603159,1740595852865,-3117.32,0.0003589,14]
[354603161,1740595852876,-500.0,0.0003589,14]
[354603163,1740595852889,-500.0,0.0003589,14]
[354603165,1740595852899,-896.05,0.0003589,14]
[354603167,1740595852910,-1469.5,0.0003589,14]
[354603169,1740595852922,-500.0,0.0003589,14]
[354603171,1740595852935,-500.0,0.0003589,14]
[354603173,1740595852947,-500.0,0.0003589,14]
[354603175,1740595852963,-500.0,0.0003589,14]
[354603177,1740595852978,-1970.34,0.0003589,14]
[354603179,1740595852992,-1219.67,0.0003589,14]
[354603181,1740595853004,-500.0,0.0003589,14]
[354603183,1740595853015,-500.0,0.0003589,14]
[354603185,1740595853027,-500.0,0.0003589,14]
[354603187,1740595853038,-1258.23,0.0003589,14]
[354603189,1740595853052,-802.71,0.0003589,14]
[354603191,1740595853075,-1003.98,0.0003589,14]
[354603193,1740595853088,-500.0,0.0003589,14]
[354603195,1740595853098,-1048.22,0.0003589,14]
[354603197,1740595853108,-500.0,0.0003589,14]
[354603199,1740595853119,-500.0,0.0003589,14]
[354603201,1740595853130,-500.0,0.0003589,14]
[354603203,1740595853141,-12754.69,0.0003589,14]
[354603205,1740595853152,-760.48,0.0003589,14]
[354603207,1740595853164,-1559.74,0.0003589,14]
[354603209,1740595853176,-1812.71,0.0003589,14]
[354603211,1740595853187,-1039.17,0.0003589,14]
[354603213,1740595853198,-500.0,0.0003589,14]
[354603215,1740595853209,-968.47,0.0003589,14]
[354603217,1740595853219,-975.3,0.0003589,14]
[354603219,1740595853230,-884.61,0.0003589,14]
[354603221,1740595853241,-581.51,0.0003589,14]
[354603223,1740595853252,-677.65,0.0003589,14]
[354603226,1740595853263,-2979.16,0.0003589,14]
[354603227,1740595853274,-500.0,0.0003589,14]
[354603229,1740595853284,-500.0,0.0003589,14]
[354603231,1740595853294,-559.35,0.0003589,14]
[354603233,1740595853304,-500.0,0.0003589,14]
[354603235,1740595853314,-500.0,0.0003589,14]
[354603237,1740595853326,-1068.0,0.0003589,14]
[354603239,1740595853336,-500.0,0.0003589,14]
[354603241,1740595853346,-1472.3,0.0003589,14]
[354603243,1740595853356,-1096.63,0.0003589,14]
[354603245,1740595853365,-500.0,0.0003589,14]
[354603247,1740595853375,-882.85,0.0003589,14]
[354603249,1740595853385,-1708.56,0.0003589,14]
[354603251,1740595853395,-505.62,0.0003589,14]
[354603253,1740595853404,-500.0,0.0003589,14]
[354603256,1740595853414,-966.9,0.0003589,14]
[354603257,1740595853423,-1141.53,0.0003589,7]
[354603260,1740595853433,-500.0,0.0003589,14]
[354603262,1740595853442,-1382.5,0.0003589,14]
[354603264,1740595853452,-811.04,0.0003589,14]
[354603266,1740595853461,-669.94,0.0003589,14]
[354603268,1740595853470,-691.77,0.0003589,14]
[354603269,1740595853480,-512.15366655,0.0003589,14]
[354603271,1740595853489,-530.0,0.0003589,14]
[354603273,1740595853498,-1910.93,0.0003589,14]
[354603276,1740595853508,-500.0,0.0003589,14]
[354603278,1740595853517,-500.0,0.0003589,14]
[354603280,1740595853527,-874.49,0.0003589,14]
[354603282,1740595853537,-776.22,0.0003589,14]
[354603284,1740595853546,-811.0,0.0003589,14]
[354603286,1740595853555,-2493.41,0.0003589,14]
[354603288,1740595853565,-2617.36,0.0003589,14]
[354603290,1740595853576,-1621.78,0.0003589,14]
[354603292,1740595853586,-2143.28,0.0003589,14]
[354603294,1740595853596,-500.0,0.0003589,14]
[354603296,1740595853606,-500.0,0.0003589,14]
[354603298,1740595853615,-2319.53,0.0003589,14]
[354603300,1740595853624,-500.0,0.0003589,14]
[354603301,1740595853633,-500.0,0.0003589,14]
[354603304,1740595853643,-529.04,0.0003589,14]
[354603305,1740595853652,-1163.2,0.0003589,14]
[354603307,1740595853661,-1841.79,0.0003589,14]
[354603309,1740595853671,-768.45,0.0003589,14]
[354603311,1740595853680,-500.0,0.0003589,14]
[354603313,1740595853689,-500.0,0.0003589,14]
[354603315,1740595853698,-500.0,0.0003589,14]
[354603317,1740595853708,-500.0,0.0003589,14]
[354603319,1740595853717,-500.0,0.0003589,14]
[354603321,1740595853727,-500.0,0.0003589,14]
[354603323,1740595853737,-500.0,0.0003589,14]
[354603325,1740595853746,-911.1,0.0003589,14]
[354603327,1740595853755,-491.79058159,0.0003589,14]
[354603329,1740595853764,-500.0,0.0003589,14]
[354603331,1740595853774,-500.0,0.0003589,14]
[354603334,1740595853783,-1280.98,0.0003589,14]
[354603336,1740595853793,-2143.46,0.0003589,14]
[354603337,1740595853802,-1855.75,0.0003589,14]
[354603339,1740595853811,-873.58,0.0003589,14]
[354603341,1740595853824,-500.0,0.0003589,14]
[354603343,1740595853834,-939.46,0.0003589,14]
[354603345,1740595853843,-442.55330852,0.0003589,14]
[354603347,1740595853852,-500.0,0.0003589,14]
[354603349,1740595853861,-500.0,0.0003589,14]
[354603351,1740595853871,-1568.96,0.0003589,120]
[354603353,1740595853880,-517.26259627,0.0003589,14]
[354603355,1740595853890,-1902.32,0.0003589,14]
[354603357,1740595853899,-500.0,0.0003589,14]
[354603359,1740595853908,-1142.01,0.0003589,14]
[354603361,1740595853918,-938.37,0.0003589,14]
[354603363,1740595853928,-3660.72,0.0003589,14]
[354603365,1740595853945,-800.79,0.0003589,14]
[354603367,1740595853955,-2507.28,0.0003589,2]
[354603369,1740595853964,-512.47,0.0003589,14]
[354603371,1740595853975,-500.0,0.0003589,14]
[354603373,1740595853986,-1981.71,0.0003589,14]
[354603375,1740595853996,-731.9,0.0003589,14]
[354603377,1740595854005,-500.0,0.0003589,14]
[354603379,1740595854015,-1276.51,0.0003589,14]
[354603381,1740595854024,-708.24,0.0003589,14]
[354603383,1740595854033,-500.0,0.0003589,14]
[354603385,1740595854042,-2733.74,0.0003589,14]
[354603387,1740595854052,-2252.01,0.0003589,14]
[354603389,1740595854061,-1022.27,0.0003589,14]
[354603391,1740595854073,-891.14,0.0003589,14]
[354603393,1740595854082,-500.0,0.0003589,14]
[354603395,1740595854091,-500.0,0.0003589,14]
[354603397,1740595854100,-642.98,0.0003589,14]
[354603399,1740595854110,-552.36,0.0003589,14]
[354603401,1740595854119,-630.12,0.0003589,14]
[354603403,1740595854128,-500.0,0.0003589,14]
[354603405,1740595854137,-1991.31,0.0003589,14]
[354603407,1740595854147,-1294.07,0.0003589,14]
[354603409,1740595854155,-1853.21,0.0003589,14]
[354603411,1740595854165,-630.96,0.0003589,14]
[354603413,1740595854174,-1573.28,0.0003589,14]
[354603415,1740595854183,-2426.57,0.0003589,14]
[354603417,1740595854192,-535.29397655,0.0003589,14]
[354603419,1740595854201,-1150.32,0.0003589,14]
[354603421,1740595854210,-2490.78,0.0003589,14]
[354603423,1740595854219,-715.02,0.0003589,14]
[354603425,1740595854228,-500.0,0.0003589,14]
[354603427,1740595854238,-3484.94,0.0003589,14]
[354603429,1740595854247,-2771.33,0.0003589,14]
[354603431,1740595854257,-500.0,0.0003589,14]
[354603433,1740595854266,-500.0,0.0003589,14]
[354603435,1740595854275,-500.0,0.0003589,14]
[354603437,1740595854284,-1596.62,0.0003589,14]
[354603439,1740595854293,-1876.78,0.0003589,14]
[354603441,1740595854302,-1560.4,0.0003589,14]
[354603443,1740595854311,-500.0,0.0003589,14]
[354603445,1740595854322,-1676.26,0.0003589,14]
[354603447,1740595854331,-500.0,0.0003589,14]
[354603449,1740595854340,-6192.85,0.0003589,14]
[354603451,1740595854350,-647.32,0.0003589,14]
[354603453,1740595854359,-1726.29,0.0003589,14]
[354603455,1740595854368,-2725.95,0.0003589,14]
[354603457,1740595854378,-563.72,0.0003589,14]
[354603458,1740595854388,-944.42,0.0003589,14]
[354603461,1740595854397,-500.0,0.0003589,14]
[354603462,1740595854407,-3837.57,0.0003589,14]
[354603464,1740595854418,-1361.35,0.0003589,14]
[354603466,1740595854427,-1302.57,0.0003589,14]
[354603468,1740595854438,-688.53,0.0003589,14]
[354603470,1740595854446,-11693.75,0.0003589,14]
[354603472,1740595854456,-2812.52,0.0003589,14]
[354603474,1740595854465,-861.86,0.0003589,14]
[354603476,1740595854474,-3063.11,0.0003589,14]
[354603478,1740595854483,-1132.99,0.0003589,14]
[354603480,1740595854493,-500.0,0.0003589,14]
[354603482,1740595854502,-2332.02,0.0003589,14]
[354603483,1740595854512,-509.80018505,0.0003589,14]
[354603484,1740595854521,-3032.5,0.0003589,14]
[354603485,1740595854530,-1403.52,0.0003589,14]